[Event "CCT Chessable Masters Play-In 2025"]
[Site "Online"]
[Date "2025.02.17"]
[Round "2.60"]
[White "Jumabayev, Rinat"]
[Black "Shimanov, Aleksandr"]
[Result "0-1"]
[ECO "D22"]
[WhiteElo "2564"]
[BlackElo "2593"]
[PlyCount "86"]
[EventDate "2025.02.13"]
[EventType "swiss"]
[EventCountry "NET"]
[TimeControl "600"]
[BlackClock "0:01:55"]

1. d4 {[%emt 0:00:17]} d5 {[%emt 0:00:05]} 2. c4 {[%emt 0:00:11]} dxc4 {[%emt 0:00:00]} 3. Nf3 {[%emt 0:00:03]} a6 {[%emt 0:00:09]} 4. e3 {[%emt 0:00:04]} b5 {[%emt 0:00:07]} 5. a4 {[%emt 0:00:05]} Bb7 {[%emt 0:00:04]} 6. b3 {[%emt 0:00:01]} Nf6 {[%emt 0:00:02]} 7. bxc4 {[%emt 0:00:01]} b4 {[%emt 0:00:01]} 8. Nbd2 {[%emt 0:00:09]} c5 {[%emt 0:00:03]} 9. d5 {[%emt 0:00:02]} g6 {[%emt 0:00:02]} 10. Bb2 {[%emt 0:00:05]} Bg7 {[%emt 0:00:01]} 11. a5 {[%emt 0:00:35]} O-O {[%emt 0:00:03]} 12. Be2 {[%emt 0:00:02]} e6 {[%emt 0:00:02]} 13. e4 {[%emt 0:00:02]} exd5 {[%emt 0:01:58]} 14. exd5 {[%emt 0:00:01]} Ne8 {[%emt 0:00:27]} 15. Bxg7 {[%emt 0:00:04]} Kxg7 {[%emt 0:00:00]} 16. O-O {[%emt 0:00:05]} Nd6 {[%emt 0:00:01]} 17. Nb3 {[%emt 0:00:10]} Qc7 {[%emt 0:00:01]} 18. Re1 {[%emt 0:00:06]} Nd7 {[%emt 0:00:03]} 19. Qc2 {[%emt 0:00:06]} Rae8 {[%emt 0:00:03]} 20. Bd3 {[%emt 0:00:14]} Bc8 {[%emt 0:00:11]} 21. Qb2+ {[%emt 0:00:04]} Kg8 {[%emt 0:00:01]} 22. Qd2 {[%emt 0:00:01]} Qd8 {[%emt 0:00:12]} 23. Qf4 {[%emt 0:00:19]} Nb7 {[%emt 0:00:10]} 24. h4 {[%emt 0:00:45]} Rxe1+ {[%emt 0:00:54]} 25. Rxe1 {[%emt 0:00:16]} Nxa5 {[%emt 0:00:01]} 26. Nxa5 {[%emt 0:00:06]} Qxa5 {[%emt 0:00:00]} 27. h5 {[%emt 0:01:18]} Qd8 {[%emt 0:00:02]} 28. Ng5 {[%emt 0:00:36]} Qf6 {[%emt 0:01:00]} 29. Qg3 {[%emt 0:00:02]} a5 {[%emt 0:00:13]} 30. hxg6 {[%emt 0:00:31]} hxg6 {[%emt 0:00:08]} 31. Qh4 {[%emt 0:00:23]} Qg7 {[%emt 0:00:01]} 32. Re7 {[%emt 0:00:13]} a4 {[%emt 0:01:36]} 33. Ne6 {[%emt 0:01:31]} Qa1+ {[%emt 0:00:04]} 34. Bf1 {[%emt 0:00:36]} Qf6 {[%emt 0:00:03]} 35. Qxf6 {[%emt 0:00:01]} Nxf6 {[%emt 0:00:00]} 36. Nxf8 {[%emt 0:00:01]} Kxf8 {[%emt 0:00:00]} 37. Ra7 {[%emt 0:00:02]} Bd7 {[%emt 0:00:02]} 38. d6 {[%emt 0:00:05]} a3 {[%emt 0:00:03]} 39. Bd3 {[%emt 0:00:26]} Be6 {[%emt 0:00:01]} 40. f3 {[%emt 0:00:09]} Nd7 {[%emt 0:00:03]} 41. Kf2 {[%emt 0:00:09]} Ne5 {[%emt 0:00:01]} 42. Ke3 {[%emt 0:00:02]} Kg7 {[%emt 0:00:06]} 43. f4 Ng4+ {[%emt 0:00:01]} 0-1

[Event "CCT Chessable Masters Play-In 2025"]
[Site "Online"]
[Date "2025.02.17"]
[Round "2.61"]
[White "Dai, Changren"]
[Black "Alekseenko, Kirill"]
[Result "1-0"]
[ECO "D22"]
[WhiteElo "2527"]
[BlackElo "2661"]
[PlyCount "127"]
[EventDate "2025.02.13"]
[EventType "swiss"]
[EventCountry "NET"]
[TimeControl "600"]
[WhiteClock "0:00:09"]
[BlackClock "0:00:16"]

1. d4 {[%emt 0:00:01]} d5 {[%emt 0:00:04]} 2. c4 {[%emt 0:00:01]} dxc4 {[%emt 0:00:01]} 3. Nf3 {[%emt 0:00:01]} a6 {[%emt 0:00:02]} 4. e3 {[%emt 0:00:14]} Bg4 {[%emt 0:00:04]} 5. Bxc4 {[%emt 0:00:03]} e6 {[%emt 0:00:00]} 6. h3 {[%emt 0:00:09]} Bh5 {[%emt 0:00:02]} 7. O-O {[%emt 0:00:09]} Nf6 {[%emt 0:00:08]} 8. b3 {[%emt 0:00:04]} Nc6 {[%emt 0:00:02]} 9. Bb2 {[%emt 0:00:02]} Bd6 {[%emt 0:00:01]} 10. Nbd2 {[%emt 0:00:05]} O-O {[%emt 0:00:01]} 11. Be2 {[%emt 0:00:15]} Nd5 {[%emt 0:00:03]} 12. Nc4 {[%emt 0:00:29]} f5 {[%emt 0:00:01]} 13. Rc1 {[%emt 0:00:04]} Qe8 {[%emt 0:00:23]} 14. a3 {[%emt 0:00:15]} Nf6 {[%emt 0:00:11]} 15. Nfe5 {[%emt 0:00:08]} Bxe2 {[%emt 0:00:04]} 16. Qxe2 {[%emt 0:00:01]} Bxe5 {[%emt 0:00:08]} 17. dxe5 {[%emt 0:00:05]} Ne4 {[%emt 0:00:15]} 18. Rfd1 {[%emt 0:00:09]} Qg6 {[%emt 0:00:10]} 19. Rd7 {[%emt 0:01:34]} f4 {[%emt 0:00:01]} 20. Qg4 {[%emt 0:00:31]} fxe3 {[%emt 0:00:03]} 21. Nxe3 {[%emt 0:00:37]} Rxf2 {[%emt 0:00:29]} 22. Qxg6 {[%emt 0:00:04]} hxg6 {[%emt 0:00:04]} 23. Rc4 {[%emt 0:00:10]} Rxb2 {[%emt 0:00:16]} 24. Rxe4 {[%emt 0:00:01]} Rxb3 {[%emt 0:00:02]} 25. Rxc7 {[%emt 0:00:01]} Rd8 {[%emt 0:00:59]} 26. Nc4 {[%emt 0:00:43]} Rd4 {[%emt 0:00:40]} 27. Rxd4 {[%emt 0:00:01]} Nxd4 {[%emt 0:00:02]} 28. Nd6 {[%emt 0:00:19]} b5 {[%emt 0:00:16]} 29. h4 {[%emt 0:00:08]} Rb1+ {[%emt 0:01:32]} 30. Kh2 {[%emt 0:00:03]} Rf1 {[%emt 0:00:01]} 31. Ra7 {[%emt 0:00:10]} Nc6 {[%emt 0:00:14]} 32. Ra8+ {[%emt 0:00:22]} Rf8 {[%emt 0:00:04]} 33. Rxa6 {[%emt 0:00:01]} Nxe5 {[%emt 0:00:01]} 34. Ne4 {[%emt 0:00:09]} Rf4 {[%emt 0:00:11]} 35. Ng5 {[%emt 0:00:03]} Rxh4+ {[%emt 0:00:13]} 36. Kg1 {[%emt 0:00:01]} Kf8 {[%emt 0:00:19]} 37. Nxe6+ {[%emt 0:00:12]} Ke7 {[%emt 0:00:08]} 38. Nc7 {[%emt 0:00:17]} Re4 {[%emt 0:00:33]} 39. Nxb5 {[%emt 0:00:01]} g5 {[%emt 0:00:10]} 40. Nc3 {[%emt 0:00:10]} Re1+ {[%emt 0:00:01]} 41. Kf2 {[%emt 0:00:05]} Nd3+ {[%emt 0:00:01]} 42. Kf3 {[%emt 0:00:03]} Re5 {[%emt 0:00:08]} 43. Ra7+ {[%emt 0:00:05]} Kf6 {[%emt 0:00:06]} 44. Ra6+ {[%emt 0:00:11]} Kf7 {[%emt 0:00:01]} 45. g3 {[%emt 0:00:07]} Ne1+ {[%emt 0:00:10]} 46. Kg4 {[%emt 0:00:04]} Nc2 {[%emt 0:00:03]} 47. Ra7+ {[%emt 0:00:03]} Kg6 {[%emt 0:00:01]} 48. Ra6+ {[%emt 0:00:01]} Kh7 {[%emt 0:00:01]} 49. a4 {[%emt 0:00:06]} Rc5 {[%emt 0:00:14]} 50. Ne4 {[%emt 0:00:09]} Rc4 {[%emt 0:00:05]} 51. Kf3 {[%emt 0:00:12]} g4+ {[%emt 0:00:08]} 52. Kf4 {[%emt 0:00:01]} Nb4 {[%emt 0:00:02]} 53. Rd6 {[%emt 0:00:12]} Nc6 {[%emt 0:00:24]} 54. Ke3 {[%emt 0:00:02]} Kg8 {[%emt 0:00:03]} 55. Ng5 {[%emt 0:00:04]} Kf8 {[%emt 0:00:01]} 56. Rd7 {[%emt 0:00:06]} Rc3+ {[%emt 0:00:08]} 57. Kf4 {[%emt 0:00:03]} Rc4+ {[%emt 0:00:00]} 58. Kf5 {[%emt 0:00:07]} Rc5+ {[%emt 0:00:04]} 59. Kf4 {[%emt 0:00:07]} Rc4+ {[%emt 0:00:01]} 60. Kf5 {[%emt 0:00:04]} Ne7+ {[%emt 0:00:01]} 61. Ke6 {[%emt 0:00:02]} Rc6+ {[%emt 0:00:01]} 62. Ke5 {[%emt 0:00:01]} Rc5+ {[%emt 0:00:00]} 63. Kf4 {[%emt 0:00:01]} Ra5 {[%emt 0:00:02]} 64. Rd8# {[%emt 0:00:02]} 1-0

[Event "CCT Chessable Masters Play-In 2025"]
[Site "Online"]
[Date "2025.02.17"]
[Round "2.62"]
[White "Moiseenko, Alexander"]
[Black "Samadov, Read"]
[Result "0-1"]
[ECO "D03"]
[WhiteElo "2568"]
[BlackElo "2501"]
[PlyCount "114"]
[EventDate "2025.02.13"]
[EventType "swiss"]
[EventCountry "NET"]
[TimeControl "600"]
[BlackClock "0:01:25"]

1. d4 {[%emt 0:00:08]} Nf6 {[%emt 0:00:02]} 2. Bg5 {[%emt 0:00:01]} d5 {[%emt 0:00:01]} 3. e3 {[%emt 0:00:03]} e6 {[%emt 0:00:34]} 4. Bd3 {[%emt 0:00:05]} Nbd7 {[%emt 0:00:04]} 5. Nf3 {[%emt 0:00:01]} h6 {[%emt 0:00:02]} 6. Bh4 {[%emt 0:00:02]} Be7 {[%emt 0:00:01]} 7. Nbd2 {[%emt 0:00:05]} b6 {[%emt 0:00:02]} 8. c3 {[%emt 0:00:04]} Bb7 {[%emt 0:00:01]} 9. Qe2 {[%emt 0:00:12]} Ne4 {[%emt 0:00:12]} 10. Bxe7 {[%emt 0:00:20]} Qxe7 {[%emt 0:00:00]} 11. Ba6 {[%emt 0:00:06]} Bxa6 {[%emt 0:00:10]} 12. Qxa6 {[%emt 0:00:01]} Nxd2 {[%emt 0:00:05]} 13. Nxd2 {[%emt 0:00:01]} O-O {[%emt 0:00:01]} 14. O-O {[%emt 0:00:01]} c5 {[%emt 0:00:02]} 15. f4 {[%emt 0:00:10]} Qd8 {[%emt 0:00:35]} 16. Rf3 {[%emt 0:00:51]} f5 {[%emt 0:00:23]} 17. h3 {[%emt 0:00:12]} Qc8 {[%emt 0:00:14]} 18. Qe2 {[%emt 0:00:02]} Nf6 {[%emt 0:00:03]} 19. Kh2 {[%emt 0:00:04]} g5 {[%emt 0:00:48]} 20. Rg3 {[%emt 0:00:58]} g4 {[%emt 0:00:03]} 21. hxg4 {[%emt 0:00:02]} Nxg4+ {[%emt 0:00:05]} 22. Rxg4+ {[%emt 0:00:42]} fxg4 {[%emt 0:00:00]} 23. Qxg4+ {[%emt 0:00:01]} Kh7 {[%emt 0:00:02]} 24. Nf3 {[%emt 0:00:00]} Rf5 {[%emt 0:00:11]} 25. Ne5 {[%emt 0:00:11]} Qe8 {[%emt 0:00:24]} 26. Kg1 {[%emt 0:00:13]} Qh5 {[%emt 0:00:04]} 27. Qxh5 {[%emt 0:00:04]} Rxh5 {[%emt 0:00:02]} 28. g4 {[%emt 0:00:01]} Rg8 {[%emt 0:00:12]} 29. Kg2 {[%emt 0:00:03]} Rxe5 {[%emt 0:00:39]} 30. dxe5 {[%emt 0:00:03]} Rxg4+ {[%emt 0:00:00]} 31. Kf3 {[%emt 0:00:00]} h5 {[%emt 0:00:06]} 32. c4 {[%emt 0:00:03]} dxc4 {[%emt 0:00:11]} 33. Rd1 {[%emt 0:00:03]} Rg7 {[%emt 0:00:22]} 34. e4 {[%emt 0:00:09]} h4 {[%emt 0:00:06]} 35. f5 {[%emt 0:00:58]} Rg3+ {[%emt 0:00:02]} 36. Kf4 {[%emt 0:00:01]} Rd3 {[%emt 0:00:01]} 37. Rh1 {[%emt 0:00:11]} h3 {[%emt 0:00:01]} 38. a4 {[%emt 0:01:37]} a6 {[%emt 0:00:10]} 39. Kg4 {[%emt 0:00:05]} b5 {[%emt 0:00:07]} 40. axb5 {[%emt 0:00:02]} axb5 {[%emt 0:00:01]} 41. Kg5 {[%emt 0:00:18]} Kg7 {[%emt 0:00:02]} 42. Ra1 {[%emt 0:00:04]} Rg3+ {[%emt 0:00:44]} 43. Kf4 {[%emt 0:00:08]} Rg2 {[%emt 0:00:02]} 44. Ra7+ {[%emt 0:00:20]} Kh6 {[%emt 0:00:01]} 45. f6 {[%emt 0:00:42]} Rxb2 {[%emt 0:00:50]} 46. Ra8 {[%emt 0:00:10]} c3 {[%emt 0:00:03]} 47. Rh8+ {[%emt 0:00:09]} Kg6 {[%emt 0:00:01]} 48. Rxh3 {[%emt 0:00:02]} c2 {[%emt 0:00:05]} 49. Rg3+ {[%emt 0:00:04]} Kf7 {[%emt 0:00:02]} 50. Rc3 {[%emt 0:00:00]} c4 {[%emt 0:00:03]} 51. Kg5 {[%emt 0:00:01]} Ra2 {[%emt 0:00:05]} 52. Kh5 {[%emt 0:00:00]} Ra8 {[%emt 0:00:22]} 53. Rxc2 {[%emt 0:00:02]} Rh8+ {[%emt 0:00:00]} 54. Kg5 {[%emt 0:00:01]} Rg8+ {[%emt 0:00:00]} 55. Kf4 {[%emt 0:00:00]} Rc8 {[%emt 0:00:01]} 56. Ra2 {[%emt 0:00:01]} Rc7 {[%emt 0:00:02]} 57. Rh2 Kg6 {[%emt 0:00:03]} 0-1

[Event "CCT Chessable Masters Play-In 2025"]
[Site "Online"]
[Date "2025.02.17"]
[Round "2.63"]
[White "Suleymanli, Aydin"]
[Black "Atabayev, Saparmyrat"]
[Result "1/2-1/2"]
[ECO "E36"]
[WhiteElo "2623"]
[BlackElo "2516"]
[PlyCount "85"]
[EventDate "2025.02.13"]
[EventType "swiss"]
[EventCountry "NET"]
[TimeControl "600"]
[WhiteClock "0:01:30"]
[BlackClock "0:02:35"]

1. d4 {[%emt 0:00:01]} Nf6 {[%emt 0:00:05]} 2. c4 {[%emt 0:00:01]} e6 {[%emt 0:00:00]} 3. Nc3 {[%emt 0:00:01]} Bb4 {[%emt 0:00:01]} 4. Qc2 {[%emt 0:00:00]} d5 {[%emt 0:00:03]} 5. a3 {[%emt 0:00:04]} Bxc3+ {[%emt 0:00:03]} 6. Qxc3 {[%emt 0:00:00]} O-O {[%emt 0:00:01]} 7. e3 {[%emt 0:00:13]} b6 {[%emt 0:00:07]} 8. cxd5 {[%emt 0:00:05]} exd5 {[%emt 0:00:08]} 9. Bd3 {[%emt 0:00:23]} a5 {[%emt 0:00:12]} 10. b3 {[%emt 0:00:14]} Ba6 {[%emt 0:00:07]} 11. Ne2 {[%emt 0:00:15]} Ne4 {[%emt 0:00:02]} 12. Qc2 {[%emt 0:00:02]} Bxd3 {[%emt 0:00:02]} 13. Qxd3 {[%emt 0:00:00]} a4 {[%emt 0:00:07]} 14. b4 {[%emt 0:00:08]} c6 {[%emt 0:00:28]} 15. O-O {[%emt 0:00:04]} Re8 {[%emt 0:00:05]} 16. f3 {[%emt 0:00:19]} Nd6 {[%emt 0:00:01]} 17. Ng3 {[%emt 0:00:10]} Qc8 {[%emt 0:00:37]} 18. e4 {[%emt 0:00:12]} Qa6 {[%emt 0:00:07]} 19. Qb1 {[%emt 0:00:21]} Nd7 {[%emt 0:00:10]} 20. e5 {[%emt 0:00:07]} Nb5 {[%emt 0:00:08]} 21. Qf5 {[%emt 0:00:05]} Nf8 {[%emt 0:00:07]} 22. Qg4 {[%emt 0:00:02]} Qc8 {[%emt 0:00:21]} 23. Nf5 {[%emt 0:00:04]} g6 {[%emt 0:00:07]} 24. Nh6+ {[%emt 0:00:08]} Kg7 {[%emt 0:00:00]} 25. Qh4 {[%emt 0:01:01]} Qe6 {[%emt 0:00:03]} 26. Bg5 {[%emt 0:00:29]} Nd7 {[%emt 0:00:04]} 27. Ng4 {[%emt 0:00:08]} h5 {[%emt 0:00:08]} 28. Nf6 {[%emt 0:00:06]} Nxf6 {[%emt 0:00:13]} 29. Bxf6+ {[%emt 0:00:00]} Kh7 {[%emt 0:00:00]} 30. g4 {[%emt 0:00:14]} Nxd4 {[%emt 0:00:18]} 31. gxh5 {[%emt 0:00:03]} Nf5 {[%emt 0:00:07]} 32. hxg6+ {[%emt 0:00:02]} Kxg6 {[%emt 0:00:00]} 33. Qf4 {[%emt 0:00:35]} Kh7 {[%emt 0:00:22]} 34. Kh1 {[%emt 0:00:04]} Rg8 {[%emt 0:00:02]} 35. Rg1 {[%emt 0:00:08]} Rxg1+ {[%emt 0:00:09]} 36. Rxg1 {[%emt 0:00:01]} Rg8 {[%emt 0:00:00]} 37. Rxg8 {[%emt 0:00:08]} Kxg8 {[%emt 0:00:00]} 38. Qg4+ {[%emt 0:00:31]} Kh7 {[%emt 0:00:12]} 39. Qh5+ {[%emt 0:00:09]} Nh6 {[%emt 0:00:02]} 40. Qg5 {[%emt 0:00:00]} Nf5 {[%emt 0:00:03]} 41. Qh5+ {[%emt 0:01:28]} Nh6 {[%emt 0:00:09]} 42. Qg5 {[%emt 0:00:18]} Nf5 {[%emt 0:02:24]} 43. Qh5+ {[%emt 0:00:06]} 1/2-1/2

[Event "CCT Chessable Masters Play-In 2025"]
[Site "Online"]
[Date "2025.02.17"]
[Round "2.64"]
[White "Fier, Alexandr"]
[Black "Bharath Subramaniyam H"]
[Result "0-1"]
[ECO "A47"]
[WhiteElo "2547"]
[BlackElo "2567"]
[PlyCount "58"]
[EventDate "2025.02.13"]
[EventType "swiss"]
[EventCountry "NET"]
[TimeControl "600"]
[WhiteClock "0:07:56"]
[BlackClock "0:07:12"]

1. d4 {[%emt 0:00:01]} Nf6 {[%emt 0:00:02]} 2. Nf3 {[%emt 0:00:01]} b6 {[%emt 0:00:04]} 3. Bg5 {[%emt 0:00:01]} Ne4 {[%emt 0:00:02]} 4. Bh4 {[%emt 0:00:02]} Bb7 {[%emt 0:00:00]} 5. Nbd2 {[%emt 0:00:01]} g6 {[%emt 0:00:07]} 6. Nxe4 {[%emt 0:00:03]} Bxe4 {[%emt 0:00:00]} 7. Nd2 {[%emt 0:00:04]} Bb7 {[%emt 0:00:02]} 8. e4 {[%emt 0:00:02]} Bg7 {[%emt 0:00:01]} 9. c3 {[%emt 0:00:01]} O-O {[%emt 0:00:02]} 10. Bc4 {[%emt 0:00:01]} d6 {[%emt 0:00:13]} 11. O-O {[%emt 0:00:01]} Nd7 {[%emt 0:00:02]} 12. Re1 {[%emt 0:00:01]} a6 {[%emt 0:00:23]} 13. a4 {[%emt 0:00:02]} Qe8 {[%emt 0:00:11]} 14. Nf3 {[%emt 0:00:12]} e5 {[%emt 0:00:04]} 15. a5 {[%emt 0:00:17]} b5 {[%emt 0:00:02]} 16. Bf1 {[%emt 0:00:00]} h6 {[%emt 0:00:05]} 17. Bg3 {[%emt 0:00:02]} Qe7 {[%emt 0:00:05]} 18. h3 {[%emt 0:00:16]} c5 {[%emt 0:00:05]} 19. d5 {[%emt 0:00:03]} c4 {[%emt 0:00:02]} 20. Nd2 {[%emt 0:00:10]} f5 {[%emt 0:00:20]} 21. f3 {[%emt 0:00:01]} h5 {[%emt 0:00:20]} 22. b3 {[%emt 0:00:03]} cxb3 {[%emt 0:00:03]} 23. c4 {[%emt 0:00:01]} bxc4 {[%emt 0:00:13]} 24. Bxc4 {[%emt 0:00:03]} Bh6 {[%emt 0:00:06]} 25. Bxb3 {[%emt 0:00:23]} Nc5 {[%emt 0:00:04]} 26. Bc2 {[%emt 0:00:03]} Qg5 {[%emt 0:00:06]} 27. Nf1 {[%emt 0:00:03]} fxe4 {[%emt 0:00:01]} 28. fxe4 {[%emt 0:00:01]} Rxf1+ {[%emt 0:00:02]} 29. Rxf1 {[%emt 0:00:05]} Qxg3 {[%emt 0:00:01]} 0-1

[Event "CCT Chessable Masters Play-In 2025"]
[Site "Online"]
[Date "2025.02.17"]
[Round "2.65"]
[White "Meier, Georg"]
[Black "Pakleza, Zbigniew"]
[Result "1-0"]
[ECO "D12"]
[WhiteElo "2598"]
[BlackElo "2485"]
[PlyCount "165"]
[EventDate "2025.02.13"]
[EventType "swiss"]
[EventCountry "NET"]
[TimeControl "600"]
[WhiteClock "0:00:18"]
[BlackClock "0:00:03"]

1. Nf3 {[%emt 0:00:01]} d5 {[%emt 0:00:02]} 2. d4 {[%emt 0:00:00]} Nf6 {[%emt 0:00:02]} 3. c4 {[%emt 0:00:01]} c6 {[%emt 0:00:00]} 4. e3 {[%emt 0:00:01]} Bf5 {[%emt 0:00:01]} 5. Nc3 {[%emt 0:00:01]} e6 {[%emt 0:00:01]} 6. Nh4 {[%emt 0:00:01]} Be4 {[%emt 0:00:00]} 7. f3 {[%emt 0:00:01]} Bg6 {[%emt 0:00:01]} 8. Qb3 {[%emt 0:00:04]} Qb6 {[%emt 0:00:01]} 9. Nxg6 {[%emt 0:00:00]} hxg6 {[%emt 0:00:00]} 10. Bd2 {[%emt 0:00:02]} Nbd7 {[%emt 0:00:01]} 11. Kf2 {[%emt 0:00:06]} g5 {[%emt 0:00:12]} 12. g4 {[%emt 0:00:05]} Be7 {[%emt 0:00:22]} 13. Qxb6 {[%emt 0:00:06]} axb6 {[%emt 0:00:02]} 14. a4 {[%emt 0:00:01]} O-O-O {[%emt 0:00:24]} 15. cxd5 {[%emt 0:00:28]} exd5 {[%emt 0:00:04]} 16. h3 {[%emt 0:00:04]} Nf8 {[%emt 0:00:16]} 17. Bd3 {[%emt 0:00:01]} Ne6 {[%emt 0:00:07]} 18. Kg2 {[%emt 0:00:11]} g6 {[%emt 0:00:10]} 19. Ne2 {[%emt 0:00:03]} Kd7 {[%emt 0:00:18]} 20. b4 {[%emt 0:00:03]} Ra8 {[%emt 0:00:04]} 21. Bc2 {[%emt 0:00:21]} Ne8 {[%emt 0:00:19]} 22. Bb3 {[%emt 0:00:10]} Nd6 {[%emt 0:00:05]} 23. b5 {[%emt 0:00:10]} f5 {[%emt 0:01:07]} 24. Rhc1 {[%emt 0:00:25]} Rhc8 {[%emt 0:00:24]} 25. Be1 {[%emt 0:00:38]} f4 {[%emt 0:00:15]} 26. exf4 {[%emt 0:00:01]} gxf4 {[%emt 0:00:06]} 27. h4 {[%emt 0:00:13]} g5 {[%emt 0:00:15]} 28. h5 {[%emt 0:00:01]} Bf6 {[%emt 0:00:07]} 29. Bf2 {[%emt 0:00:01]} Nc7 {[%emt 0:00:10]} 30. bxc6+ {[%emt 0:00:53]} bxc6 {[%emt 0:00:01]} 31. Rab1 {[%emt 0:00:00]} Ne6 {[%emt 0:00:19]} 32. Rc2 {[%emt 0:00:13]} Rab8 {[%emt 0:00:18]} 33. Ra2 {[%emt 0:00:29]} Ra8 {[%emt 0:00:05]} 34. Rc2 {[%emt 0:00:10]} Rab8 {[%emt 0:00:02]} 35. Rbc1 {[%emt 0:00:13]} Rc7 {[%emt 0:00:12]} 36. Bg1 {[%emt 0:00:58]} Ra8 {[%emt 0:00:08]} 37. Rd1 {[%emt 0:00:16]} Nb7 {[%emt 0:00:53]} 38. Nc3 {[%emt 0:00:19]} Na5 {[%emt 0:00:06]} 39. Ba2 {[%emt 0:00:01]} Rcc8 {[%emt 0:00:11]} 40. Re2 {[%emt 0:00:06]} Re8 {[%emt 0:00:01]} 41. Bb1 {[%emt 0:00:07]} Nc4 {[%emt 0:00:09]} 42. Bf5 {[%emt 0:00:03]} Nd6 {[%emt 0:00:01]} 43. Bc2 {[%emt 0:00:00]} Nc7 {[%emt 0:00:10]} 44. Bf2 {[%emt 0:00:09]} Rxe2 {[%emt 0:00:04]} 45. Nxe2 {[%emt 0:00:00]} b5 {[%emt 0:00:08]} 46. Nc3 {[%emt 0:00:06]} Rb8 {[%emt 0:00:21]} 47. Rb1 {[%emt 0:00:13]} Rb7 {[%emt 0:00:03]} 48. axb5 {[%emt 0:00:07]} cxb5 {[%emt 0:00:05]} 49. h6 {[%emt 0:00:11]} Ke6 {[%emt 0:00:19]} 50. h7 {[%emt 0:00:05]} Kf7 {[%emt 0:00:02]} 51. Bb3 {[%emt 0:00:02]} Kg7 {[%emt 0:00:12]} 52. Nxd5 {[%emt 0:00:04]} Nxd5 {[%emt 0:00:01]} 53. Bxd5 {[%emt 0:00:00]} Rb8 {[%emt 0:00:08]} 54. Rh1 {[%emt 0:00:13]} Rh8 {[%emt 0:00:01]} 55. Kf1 {[%emt 0:00:04]} Rxh7 {[%emt 0:00:02]} 56. Rxh7+ {[%emt 0:00:02]} Kxh7 {[%emt 0:00:00]} 57. Ke2 {[%emt 0:00:00]} Kg6 {[%emt 0:00:03]} 58. Kd3 {[%emt 0:00:02]} Kg7 {[%emt 0:00:04]} 59. Kc3 {[%emt 0:00:07]} Kf8 {[%emt 0:00:02]} 60. Kb4 {[%emt 0:00:02]} Ke7 {[%emt 0:00:01]} 61. Kc5 {[%emt 0:00:02]} Kd7 {[%emt 0:00:00]} 62. Bc6+ {[%emt 0:00:03]} Kc7 {[%emt 0:00:00]} 63. Bxb5 {[%emt 0:00:13]} Be7 {[%emt 0:00:06]} 64. Be1 {[%emt 0:00:00]} Nf5+ {[%emt 0:00:24]} 65. Kd5 {[%emt 0:00:04]} Ne3+ {[%emt 0:00:01]} 66. Ke6 {[%emt 0:00:12]} Ba3 {[%emt 0:00:04]} 67. Ba5+ {[%emt 0:00:01]} Kc8 {[%emt 0:00:01]} 68. d5 {[%emt 0:00:01]} Nc2 {[%emt 0:00:02]} 69. Ba6+ {[%emt 0:00:09]} Kb8 {[%emt 0:00:02]} 70. d6 {[%emt 0:00:01]} Nd4+ {[%emt 0:00:00]} 71. Kd5 {[%emt 0:00:02]} Nxf3 {[%emt 0:00:03]} 72. d7 {[%emt 0:00:04]} Be7 {[%emt 0:00:00]} 73. Ke6 {[%emt 0:00:02]} Nd4+ {[%emt 0:00:02]} 74. Kxe7 {[%emt 0:00:02]} Nc6+ {[%emt 0:00:00]} 75. Ke6 {[%emt 0:00:04]} f3 {[%emt 0:00:02]} 76. d8=Q+ {[%emt 0:00:03]} Nxd8+ {[%emt 0:00:00]} 77. Bxd8 {[%emt 0:00:01]} Ka7 {[%emt 0:00:00]} 78. Bf1 {[%emt 0:00:01]} f2 {[%emt 0:00:00]} 79. Bxg5 {[%emt 0:00:01]} Kb7 {[%emt 0:00:00]} 80. Be3 {[%emt 0:00:00]} Kc6 {[%emt 0:00:00]} 81. g5 {[%emt 0:00:01]} Kc7 {[%emt 0:00:01]} 82. Bxf2 {[%emt 0:00:00]} Kc6 {[%emt 0:00:01]} 83. Kf7 {[%emt 0:00:00]} 1-0

[Event "CCT Chessable Masters Play-In 2025"]
[Site "Online"]
[Date "2025.02.17"]
[Round "2.66"]
[White "Azarov, Sergei"]
[Black "Sonis, Francesco"]
[Result "1-0"]
[ECO "B00"]
[WhiteElo "2596"]
[BlackElo "2570"]
[PlyCount "123"]
[EventDate "2025.02.13"]
[EventType "swiss"]
[EventCountry "NET"]
[TimeControl "600"]
[WhiteClock "0:00:43"]
[BlackClock "0:00:23"]

1. e4 {[%emt 0:00:01]} Nc6 {[%emt 0:00:15]} 2. Nf3 {[%emt 0:00:01]} d6 {[%emt 0:00:08]} 3. d4 {[%emt 0:00:07]} Nf6 {[%emt 0:00:03]} 4. Nc3 {[%emt 0:00:02]} Bg4 {[%emt 0:00:02]} 5. Bb5 {[%emt 0:00:02]} a6 {[%emt 0:00:07]} 6. Bxc6+ {[%emt 0:00:02]} bxc6 {[%emt 0:00:00]} 7. Be3 {[%emt 0:00:04]} Nd7 {[%emt 0:00:04]} 8. h3 {[%emt 0:00:05]} Bh5 {[%emt 0:00:01]} 9. Qd3 {[%emt 0:00:09]} Qb8 {[%emt 0:00:05]} 10. O-O-O {[%emt 0:00:03]} e6 {[%emt 0:00:03]} 11. g4 {[%emt 0:00:10]} Bg6 {[%emt 0:00:02]} 12. Nh4 {[%emt 0:00:00]} Be7 {[%emt 0:00:02]} 13. Nxg6 {[%emt 0:00:12]} hxg6 {[%emt 0:00:00]} 14. f4 {[%emt 0:00:01]} Qb7 {[%emt 0:00:02]} 15. Kb1 {[%emt 0:00:04]} Rb8 {[%emt 0:00:03]} 16. Bc1 {[%emt 0:00:02]} d5 {[%emt 0:00:02]} 17. f5 {[%emt 0:00:12]} Nf8 {[%emt 0:00:12]} 18. Rhf1 {[%emt 0:00:12]} Bb4 {[%emt 0:00:07]} 19. Ne2 {[%emt 0:00:25]} Qb5 {[%emt 0:00:20]} 20. Qf3 {[%emt 0:00:02]} dxe4 {[%emt 0:00:09]} 21. Qxe4 {[%emt 0:00:03]} Be7 {[%emt 0:00:18]} 22. Nf4 {[%emt 0:00:27]} gxf5 {[%emt 0:00:06]} 23. gxf5 {[%emt 0:00:02]} exf5 {[%emt 0:00:01]} 24. Qe3 {[%emt 0:00:05]} Rh6 {[%emt 0:00:39]} 25. d5 {[%emt 0:00:30]} Qc5 {[%emt 0:00:18]} 26. Qd3 {[%emt 0:00:06]} g5 {[%emt 0:00:20]} 27. Ne2 {[%emt 0:00:56]} Qxd5 {[%emt 0:00:04]} 28. Nd4 {[%emt 0:00:02]} f4 {[%emt 0:00:30]} 29. Qxa6 {[%emt 0:00:06]} Rd6 {[%emt 0:00:35]} 30. Rfe1 {[%emt 0:00:14]} Qc5 {[%emt 0:00:24]} 31. Qe2 {[%emt 0:01:16]} Ne6 {[%emt 0:00:08]} 32. Nxe6 {[%emt 0:00:01]} fxe6 {[%emt 0:00:15]} 33. Rxd6 {[%emt 0:00:07]} Qxd6 {[%emt 0:00:14]} 34. Qh5+ {[%emt 0:00:01]} Kd7 {[%emt 0:00:20]} 35. Rd1 {[%emt 0:00:01]} Rf8 {[%emt 0:00:02]} 36. Rxd6+ {[%emt 0:00:02]} cxd6 {[%emt 0:00:00]} 37. Qf3 {[%emt 0:00:05]} d5 {[%emt 0:00:01]} 38. c4 {[%emt 0:00:07]} Bc5 {[%emt 0:00:05]} 39. a4 {[%emt 0:00:09]} Kd6 {[%emt 0:00:02]} 40. a5 {[%emt 0:00:07]} e5 {[%emt 0:00:02]} 41. cxd5 {[%emt 0:00:01]} cxd5 {[%emt 0:00:01]} 42. Qh5 {[%emt 0:00:01]} f3 {[%emt 0:00:04]} 43. Qh6+ {[%emt 0:00:18]} Kd7 {[%emt 0:00:12]} 44. Qg7+ {[%emt 0:00:09]} Kc6 {[%emt 0:00:13]} 45. Qg6+ {[%emt 0:00:02]} Kd7 {[%emt 0:00:05]} 46. Qd3 {[%emt 0:00:08]} Ke6 {[%emt 0:00:40]} 47. Qa6+ {[%emt 0:00:07]} Kd7 {[%emt 0:00:11]} 48. Qb5+ {[%emt 0:00:03]} Kd6 {[%emt 0:00:05]} 49. b4 {[%emt 0:00:01]} Bd4 {[%emt 0:00:01]} 50. Qa6+ {[%emt 0:00:02]} Kd7 {[%emt 0:00:02]} 51. b5 {[%emt 0:00:10]} Rf5 {[%emt 0:00:57]} 52. Qc6+ {[%emt 0:00:05]} Ke7 {[%emt 0:00:01]} 53. Qc7+ {[%emt 0:00:19]} Kf6 {[%emt 0:00:06]} 54. b6 {[%emt 0:00:08]} f2 {[%emt 0:00:03]} 55. b7 {[%emt 0:00:02]} Ba7 {[%emt 0:00:09]} 56. Qd8+ {[%emt 0:00:43]} Ke6 {[%emt 0:00:05]} 57. Qe8+ {[%emt 0:00:07]} Kf6 {[%emt 0:00:11]} 58. Qf8+ {[%emt 0:00:06]} Ke6 {[%emt 0:00:02]} 59. Qg8+ {[%emt 0:00:07]} Kd7 {[%emt 0:00:09]} 60. Qxd5+ {[%emt 0:00:13]} Kc7 {[%emt 0:00:03]} 61. Qc4+ {[%emt 0:00:01]} Kxb7 {[%emt 0:00:06]} 62. Qe4+ {[%emt 0:00:01]} 1-0